[Event "FIDE WCCC Open-12 2024"]
[Site "Montesilvano"]
[Date "2024.11.19"]
[Round "5.15"]
[White "Karthi, Jashith"]
[Black "Mamikonyan, Artem T"]
[Result "0-1"]
[ECO "D35"]
[WhiteElo "2073"]
[BlackElo "1918"]
[Annotator "NA RC"]
[PlyCount "86"]
[EventDate "2024.11.18"]
[EventType "swiss"]
[EventCountry "ITA"]
[SourceTitle "playchess.com"]
[Source "ChessBase"]
[SourceQuality "1"]
[TimeControl "5400+30"]

1. d4 {[%emt 0:00:02]} d5 {[%emt 0:00:04]} 2. c4 {[%emt 0:00:06]} e6 {[%emt 0:00:05]} 3. Nc3 {[%emt 0:00:06]} Nf6 {[%emt 0:00:08]} 4. Nf3 {[%emt 0:00:06]} Nbd7 {[%emt 0:01:02]} 5. cxd5 {[%emt 0:00:15]} exd5 {[%emt 0:00:08]} 6. Bg5 {[%emt 0:00:10]} h6 {[%emt 0:00:20]} 7. Bh4 {[%emt 0:00:12]} c6 {[%emt 0:00:03]} 8. e3 {[%emt 0:00:19]} g5 {[%emt 0:00:29]} 9. Bg3 {[%emt 0:00:07]} Nh5 {[%emt 0:00:06]} 10. Qc2 {[%emt 0:06:12]} Nxg3 {[%emt 0:00:49]} 11. hxg3 {[%emt 0:00:06]} Bg7 {[%emt 0:00:09]} 12. Bd3 {[%emt 0:00:15]} Nb6 {[%emt 0:00:07]} 13. O-O {[%emt 0:08:42]} Be6 {[%emt 0:01:18]} 14. Rfe1 {[%emt 0:02:38]} Qd6 {[%emt 0:02:58]} 15. e4 {[%emt 0:00:53]} O-O-O {[%emt 0:00:43]} 16. Nb5 {[%emt 0:07:51]} Qd7 {[%emt 0:07:25]} 17. e5 {[%emt 0:10:44]} Bf8 {[%emt 0:00:27]} 18. a4 {[%emt 0:01:28]} a5 {[%emt 0:00:43]} 19. Nd2 {[%emt 0:02:58]} Kb8 {[%emt 0:00:59]} 20. Nd6 {[%emt 0:00:08]} Bxd6 {[%emt 0:00:44]} 21. exd6 {[%emt 0:00:05]} Qxd6 {[%emt 0:00:16]} 22. Qc3 {[%emt 0:04:23]} Qb4 {[%emt 0:00:36]} 23. Nb3 {[%emt 0:05:05]} Nc4 {[%emt 0:02:16]} 24. Bxc4 {[%emt 0:00:37]} dxc4 {[%emt 0:00:08]} 25. Nc5 {[%emt 0:01:32]} Rhe8 {[%emt 0:01:49]} 26. Nxe6 {[%emt 0:03:44]} Rxe6 {[%emt 0:00:17]} 27. Rxe6 {[%emt 0:02:12]} Qxc3 {[%emt 0:00:11]} 28. bxc3 {[%emt 0:00:07]} fxe6 {[%emt 0:00:02]} 29. Re1 {[%emt 0:00:40]} b5 {[%emt 0:01:34]} 30. Rb1 {[%emt 0:07:30]} Rd5 {[%emt 0:02:19]} 31. g4 {[%emt 0:00:19]} e5 {[%emt 0:00:47]} 32. axb5 {[%emt 0:01:06]} cxb5 {[%emt 1:17:28]} 33. dxe5 {[%emt 0:00:42]} Rxe5 {[%emt 0:00:00]} 34. g3 {[%emt 0:00:19]} Kc7 {[%emt 0:00:00]} 35. f4 {[%emt 0:00:21]} Rd5 {[%emt 0:00:00]} 36. Kf2 {[%emt 0:00:51]} Kb6 {[%emt 0:00:00]} 37. Rh1 {[%emt 0:00:10]} b4 {[%emt 0:00:00]} 38. Rxh6+ {[%emt 0:00:28]} Kb5 {[%emt 0:00:00]} 39. cxb4 {[%emt 0:00:06]} axb4 {[%emt 0:00:00]} 40. Rh8 {[%emt 0:00:16]} c3 {[%emt 0:00:00]} 41. f5 {[%emt 0:00:07]} c2 {[%emt 0:00:00]} 42. Rc8 {[%emt 0:00:05]} Rc5 {[%emt 0:00:00]} 43. Rb8+ {[%emt 0:00:07]} Kc4 {[%emt 0:05:30]} 0-1

[Event "FIDE WCCC Open-12 2024"]
[Site "Montesilvano"]
[Date "2024.11.19"]
[Round "5.16"]
[White "Kleschevnikov, Arseny"]
[Black "Baturin-Vinogradov, Miroslav"]
[Result "1/2-1/2"]
[ECO "D19"]
[WhiteElo "1893"]
[BlackElo "2048"]
[Annotator "RC"]
[PlyCount "88"]
[EventDate "2024.11.18"]
[EventType "swiss"]
[EventCountry "ITA"]
[SourceTitle "playchess.com"]
[Source "ChessBase"]
[SourceQuality "1"]
[TimeControl "5400+30"]

1. d4 {[%emt 0:00:02]} d5 {[%emt 0:00:18]} 2. c4 {[%emt 0:00:06]} c6 {[%emt 0:00:06]} 3. Nf3 {[%emt 0:00:04]} Nf6 {[%emt 0:00:11]} 4. Nc3 {[%emt 0:00:06]} dxc4 {[%emt 0:00:12]} 5. a4 {[%emt 0:00:04]} Bf5 {[%emt 0:00:49]} 6. e3 {[%emt 0:01:35]} e6 {[%emt 0:01:06]} 7. Bxc4 {[%emt 0:00:18]} Bb4 {[%emt 0:00:35]} 8. O-O {[%emt 0:00:28]} Nbd7 {[%emt 0:03:49]} 9. Qe2 {[%emt 0:00:27]} O-O {[%emt 0:00:48]} 10. e4 {[%emt 0:00:05]} Bg4 {[%emt 0:00:40]} 11. Rd1 {[%emt 0:00:30]} Rc8 {[%emt 0:06:21]} 12. h3 {[%emt 0:16:00]} Bxf3 {[%emt 0:04:23]} 13. Qxf3 {[%emt 0:00:43]} e5 {[%emt 0:10:08]} 14. Qf5 {[%emt 0:21:10]} g6 {[%emt 0:20:38]} 15. Qf3 {[%emt 0:17:57]} exd4 {[%emt 0:05:45]} 16. Ne2 {[%emt 0:17:08]} Ne5 {[%emt 0:12:14]} 17. Qb3 {[%emt 0:00:09]} Qb6 {[%emt 0:13:31]} 18. Ng3 {[%emt 0:06:47]} c5 {[%emt 0:06:27]} 19. Bg5 {[%emt 0:05:17]} Nxc4 {[%emt 0:01:11]} 20. Qxc4 {[%emt 0:00:05]} Rfe8 {[%emt 0:00:57]} 21. f3 {[%emt 0:01:30]} Kg7 {[%emt 0:03:15]} 22. Ne2 {[%emt 0:02:37]} Nd7 {[%emt 0:04:03]} 23. Nf4 {[%emt 0:00:59]} Qc6 {[%emt 0:00:57]} 24. Bh4 {[%emt 0:03:57]} a5 {[%emt 0:02:14]} 25. Qc1 {[%emt 0:01:47]} Nb6 {[%emt 0:00:50]} 26. Nd3 {[%emt 0:00:18]} f6 {[%emt 0:00:48]} 27. Qc2 {[%emt 0:01:36]} Qe6 {[%emt 0:00:23]} 28. Rac1 {[%emt 0:00:48]} g5 {[%emt 0:00:42]} 29. Bg3 {[%emt 0:00:18]} Nd7 {[%emt 0:00:32]} 30. Nf2 {[%emt 0:00:37]} h6 {[%emt 0:00:38]} 31. Nd3 {[%emt 0:00:15]} Nf8 {[%emt 0:00:41]} 32. Nf2 {[%emt 0:01:06]} Ng6 {[%emt 0:00:16]} 33. Nd3 {[%emt 0:00:08]} Red8 {[%emt 0:00:34]} 34. Bf2 {[%emt 0:01:25]} Ne5 {[%emt 0:00:44]} 35. Nxe5 {[%emt 0:00:29]} fxe5 {[%emt 0:00:24]} 36. Qc4 {[%emt 0:00:20]} Qxc4 {[%emt 0:00:15]} 37. Rxc4 {[%emt 0:00:04]} b5 {[%emt 0:00:12]} 38. axb5 {[%emt 0:00:07]} Rb8 {[%emt 0:00:07]} 39. Kf1 {[%emt 0:00:42]} d3 {[%emt 0:00:58]} 40. Bxc5 {[%emt 0:00:59]} Rdc8 {[%emt 0:01:15]} 41. Bxb4 {[%emt 0:00:10]} Rxc4 {[%emt 0:00:08]} 42. Bxa5 {[%emt 0:00:02]} Rxb5 {[%emt 0:00:19]} 43. Bc3 {[%emt 0:00:06]} Kf6 {[%emt 0:00:43]} 44. Rxd3 {[%emt 0:00:11]} Ke7 {[%emt 0:00:13]} 1/2-1/2

[Event "FIDE WCCC Open-12 2024"]
[Site "Montesilvano"]
[Date "2024.11.19"]
[Round "5.17"]
[White "Vinales Gonzalez, Enzo Mathias"]
[Black "Tatvidze, Davit"]
[Result "0-1"]
[ECO "B33"]
[WhiteElo "1903"]
[BlackElo "2024"]
[Annotator "RC"]
[PlyCount "100"]
[EventDate "2024.11.18"]
[EventType "swiss"]
[EventCountry "ITA"]
[SourceTitle "playchess.com"]
[Source "ChessBase"]
[SourceQuality "1"]
[TimeControl "5400+30"]

1. e4 {[%emt 0:00:03]} c5 {[%emt 0:00:04]} 2. Nf3 {[%emt 0:00:05]} Nc6 {[%emt 0:00:02]} 3. d4 {[%emt 0:00:06]} cxd4 {[%emt 0:00:08]} 4. Nxd4 {[%emt 0:00:04]} Nf6 {[%emt 0:00:03]} 5. Nc3 {[%emt 0:00:06]} e5 {[%emt 0:00:05]} 6. Ndb5 {[%emt 0:00:03]} d6 {[%emt 0:00:08]} 7. Nd5 {[%emt 0:00:05]} Nxd5 {[%emt 0:00:04]} 8. exd5 {[%emt 0:00:04]} Nb8 {[%emt 0:00:05]} 9. c4 {[%emt 0:00:14]} Be7 {[%emt 0:00:13]} 10. Be3 {[%emt 0:00:22]} a6 {[%emt 0:03:06]} 11. Nc3 {[%emt 0:00:03]} O-O {[%emt 0:00:36]} 12. Be2 {[%emt 0:01:25]} f5 {[%emt 0:03:09]} 13. f3 {[%emt 0:01:04]} Bh4+ {[%emt 0:06:50]} 14. Kf1 {[%emt 0:01:50]} Nd7 {[%emt 0:03:27]} 15. Qd2 {[%emt 0:02:41]} b6 {[%emt 0:33:51]} 16. g3 {[%emt 0:00:26]} Bf6 {[%emt 0:00:21]} 17. Kg2 {[%emt 0:00:08]} a5 {[%emt 0:00:46]} 18. b3 {[%emt 0:01:07]} Nc5 {[%emt 0:01:54]} 19. Qc2 {[%emt 0:06:12]} Qd7 {[%emt 0:04:30]} 20. Bxc5 {[%emt 0:04:19]} bxc5 {[%emt 0:00:32]} 21. Rae1 {[%emt 0:12:46]} e4 {[%emt 0:04:52]} 22. Rhf1 {[%emt 0:02:05]} f4 {[%emt 0:27:05]} 23. g4 {[%emt 0:00:13]} e3 {[%emt 0:00:35]} 24. Ne4 {[%emt 0:12:06]} Qe7 {[%emt 0:04:11]} 25. a3 {[%emt 0:09:30]} Be5 {[%emt 0:01:48]} 26. h3 {[%emt 0:09:14]} Qh4 {[%emt 0:00:54]} 27. Bd3 {[%emt 0:07:13]} g6 {[%emt 0:01:14]} 28. Rg1 {[%emt 0:03:52]} h5 {[%emt 0:01:00]} 29. Ref1 {[%emt 0:00:57]} Kf7 {[%emt 0:01:17]} 30. Qe2 {[%emt 0:03:32]} Rg8 {[%emt 0:01:45]} 31. Qe1 {[%emt 0:01:29]} Qe7 {[%emt 0:00:28]} 32. Kh2 {[%emt 0:07:49]} hxg4 {[%emt 0:00:45]} 33. hxg4 {[%emt 0:00:44]} Bf5 {[%emt 0:00:34]} 34. Kg2 {[%emt 0:04:48]} Bd4 {[%emt 0:00:31]} 35. Rh1 {[%emt 0:02:10]} Bxe4 {[%emt 0:00:17]} 36. fxe4 {[%emt 0:05:47]} Be5 {[%emt 0:00:40]} 37. Qxe3 {[%emt 0:00:34]} Kg7 {[%emt 0:00:30]} 38. Qf3 {[%emt 0:01:03]} Rh8 {[%emt 0:00:24]} 39. Bc2 {[%emt 0:01:49]} Rab8 {[%emt 0:00:38]} 40. a4 {[%emt 0:00:24]} Qf6 {[%emt 0:00:17]} 41. Bd1 {[%emt 0:01:38]} Rxh1 {[%emt 0:00:35]} 42. Rxh1 {[%emt 0:00:40]} Rh8 {[%emt 0:00:06]} 43. Rxh8 {[%emt 0:00:31]} Kxh8 {[%emt 0:00:04]} 44. Be2 {[%emt 0:00:21]} Kg7 {[%emt 0:00:09]} 45. Bd1 {[%emt 0:00:14]} Bd4 {[%emt 0:00:22]} 46. Kh3 {[%emt 0:00:56]} g5 {[%emt 0:00:42]} 47. Kg2 {[%emt 0:00:09]} Be3 {[%emt 0:00:08]} 48. Kf1 {[%emt 0:00:33]} Qd4 {[%emt 0:00:14]} 49. Kg2 {[%emt 0:00:21]} Kf6 {[%emt 0:00:38]} 50. Kf1 {[%emt 0:00:46]} Ke5 {[%emt 0:00:33]} 0-1

[Event "FIDE WCCC Open-12 2024"]
[Site "Montesilvano"]
[Date "2024.11.19"]
[Round "5.18"]
[White "Stepanyan, Davit"]
[Black "Le, Anh Tu"]
[Result "0-1"]
[ECO "E91"]
[WhiteElo "2011"]
[BlackElo "1812"]
[Annotator "RC"]
[PlyCount "102"]
[EventDate "2024.11.18"]
[EventType "swiss"]
[EventCountry "ITA"]
[SourceTitle "playchess.com"]
[Source "ChessBase"]
[SourceQuality "1"]
[TimeControl "5400+30"]

1. d4 {[%emt 0:00:04]} Nf6 {[%emt 0:00:11]} 2. c4 {[%emt 0:00:11]} c5 {[%emt 0:00:14]} 3. d5 {[%emt 0:00:18]} d6 {[%emt 0:00:07]} 4. Nc3 {[%emt 0:00:18]} g6 {[%emt 0:00:05]} 5. e4 {[%emt 0:00:29]} Bg7 {[%emt 0:00:06]} 6. Nf3 {[%emt 0:00:24]} O-O {[%emt 0:00:15]} 7. Be2 {[%emt 0:00:11]} e6 {[%emt 0:00:27]} 8. h3 {[%emt 0:01:09]} exd5 {[%emt 0:00:11]} 9. exd5 {[%emt 0:01:11]} Re8 {[%emt 0:02:42]} 10. O-O {[%emt 0:00:37]} Na6 {[%emt 0:00:21]} 11. Bd3 {[%emt 0:01:53]} Nc7 {[%emt 0:01:18]} 12. a4 {[%emt 0:00:25]} Rb8 {[%emt 0:01:18]} 13. Bf4 {[%emt 0:01:49]} a6 {[%emt 0:00:14]} 14. a5 {[%emt 0:00:41]} b5 {[%emt 0:00:37]} 15. axb6 {[%emt 0:00:08]} Rxb6 {[%emt 0:00:06]} 16. Qc2 {[%emt 0:00:34]} Bd7 {[%emt 0:02:58]} 17. Rfb1 {[%emt 0:01:11]} Qb8 {[%emt 0:03:38]} 18. Na4 {[%emt 0:06:54]} Bxa4 {[%emt 0:00:28]} 19. Rxa4 {[%emt 0:00:18]} Nd7 {[%emt 0:01:08]} 20. b3 {[%emt 0:05:18]} Ne5 {[%emt 0:04:24]} 21. Nxe5 {[%emt 0:00:43]} Bxe5 {[%emt 0:00:13]} 22. Be3 {[%emt 0:00:47]} Qd8 {[%emt 0:02:15]} 23. b4 {[%emt 0:16:39]} Qd7 {[%emt 0:00:23]} 24. Qa2 {[%emt 0:28:25]} Reb8 {[%emt 0:03:56]} 25. Bd2 {[%emt 0:02:08]} Bd4 {[%emt 0:07:59]} 26. Bc2 {[%emt 0:04:39]} Qe7 {[%emt 0:03:05]} 27. Bd3 {[%emt 0:09:58]} Qf6 {[%emt 0:04:22]} 28. Rf1 {[%emt 0:00:35]} cxb4 {[%emt 0:00:17]} 29. Qb3 {[%emt 0:00:10]} Ne8 {[%emt 0:10:08]} 30. Bb1 {[%emt 0:02:56]} Ng7 {[%emt 0:04:42]} 31. Ra2 {[%emt 0:02:53]} Bc5 {[%emt 0:06:16]} 32. Ra5 {[%emt 0:02:09]} Nf5 {[%emt 0:02:31]} 33. Qf3 {[%emt 0:02:34]} Kg7 {[%emt 0:00:26]} 34. g4 {[%emt 0:01:02]} Qd4 {[%emt 0:00:46]} 35. Rd1 {[%emt 0:03:56]} Nh4 {[%emt 0:00:14]} 36. Qg3 {[%emt 0:00:20]} Qf6 {[%emt 0:00:11]} 37. g5 {[%emt 0:00:45]} Qf3 {[%emt 0:00:22]} 38. Qxf3 {[%emt 0:01:03]} Nxf3+ {[%emt 0:00:02]} 39. Kg2 {[%emt 0:00:11]} Nxd2 {[%emt 0:00:47]} 40. Rxd2 {[%emt 0:00:07]} b3 {[%emt 0:00:01]} 41. Rd3 {[%emt 0:01:14]} Rb4 {[%emt 0:00:45]} 42. Rc3 {[%emt 0:00:38]} Bd4 {[%emt 0:00:19]} 43. Rc1 {[%emt 0:00:05]} b2 {[%emt 0:00:26]} 44. Rc2 {[%emt 0:00:26]} Rc8 {[%emt 0:00:11]} 45. Rxa6 {[%emt 0:04:34]} Rbxc4 {[%emt 0:01:03]} 46. Rxc4 {[%emt 0:00:00]} Rxc4 {[%emt 0:00:04]} 47. Rxd6 {[%emt 0:00:00]} Rc1 {[%emt 0:00:06]} 48. Be4 {[%emt 0:00:00]} b1=Q {[%emt 0:00:10]} 49. Bxb1 {[%emt 0:00:00]} Rxb1 {[%emt 0:00:01]} 50. Kf3 {[%emt 0:00:00]} Rb2 {[%emt 0:00:22]} 51. Ke4 {[%emt 0:00:00]} Bxf2 {[%emt 0:42:49]} 0-1

[Event "FIDE WCCC Open-12 2024"]
[Site "Montesilvano"]
[Date "2024.11.19"]
[Round "5.19"]
[White "Rueda Ahumada, Gabriel Omar"]
[Black "Ritzerveld, Noah"]
[Result "1/2-1/2"]
[ECO "D17"]
[WhiteElo "1928"]
[BlackElo "2285"]
[Annotator "RC"]
[PlyCount "104"]
[EventDate "2024.11.18"]
[EventType "swiss"]
[EventCountry "ITA"]
[SourceTitle "playchess.com"]
[Source "ChessBase"]
[SourceQuality "1"]
[TimeControl "5400+30"]

1. d4 {[%emt 0:00:43]} d5 {[%emt 0:00:05]} 2. c4 {[%emt 0:00:35]} c6 {[%emt 0:00:05]} 3. Nc3 {[%emt 0:00:06]} Nf6 {[%emt 0:00:13]} 4. Nf3 {[%emt 0:00:06]} dxc4 {[%emt 0:00:13]} 5. a4 {[%emt 0:00:08]} Bf5 {[%emt 0:00:07]} 6. Ne5 {[%emt 0:00:05]} Nbd7 {[%emt 0:00:16]} 7. Nxc4 {[%emt 0:00:09]} Nb6 {[%emt 0:00:31]} 8. Ne5 {[%emt 0:01:00]} a5 {[%emt 0:00:49]} 9. f3 {[%emt 0:03:21]} Nfd7 {[%emt 0:01:11]} 10. e4 {[%emt 0:00:31]} Nxe5 {[%emt 0:01:31]} 11. dxe5 {[%emt 0:00:11]} Qxd1+ {[%emt 0:00:33]} 12. Kxd1 {[%emt 0:00:06]} Be6 {[%emt 0:00:33]} 13. Kc2 {[%emt 0:00:07]} Nd7 {[%emt 0:02:28]} 14. f4 {[%emt 0:00:07]} g6 {[%emt 0:00:34]} 15. Be3 {[%emt 0:03:35]} f6 {[%emt 0:05:21]} 16. exf6 {[%emt 0:05:29]} exf6 {[%emt 0:01:01]} 17. Rd1 {[%emt 0:10:50]} Bb4 {[%emt 0:04:39]} 18. Be2 {[%emt 0:04:39]} Nc5 {[%emt 0:09:25]} 19. Bxc5 {[%emt 0:00:14]} Bxc5 {[%emt 0:00:05]} 20. Rhe1 {[%emt 0:01:12]} Rd8 {[%emt 0:05:04]} 21. Bf3 {[%emt 0:06:18]} Rxd1 {[%emt 0:04:29]} 22. Rxd1 {[%emt 0:00:28]} h5 {[%emt 0:03:19]} 23. Ne2 {[%emt 0:07:37]} Ke7 {[%emt 0:01:25]} 24. Nd4 {[%emt 0:00:17]} Bf7 {[%emt 0:02:11]} 25. Nb3 {[%emt 0:11:45]} Bb4 {[%emt 0:01:59]} 26. Nc1 {[%emt 0:00:40]} b5 {[%emt 0:13:53]} 27. b3 {[%emt 0:05:09]} bxa4 {[%emt 0:05:49]} 28. bxa4 {[%emt 0:00:08]} Rb8 {[%emt 0:01:56]} 29. Nd3 {[%emt 0:06:00]} Ba3 {[%emt 0:08:22]} 30. Rb1 {[%emt 0:00:30]} Rxb1 {[%emt 0:01:41]} 31. Kxb1 {[%emt 0:04:07]} Bb3 {[%emt 0:00:34]} 32. f5 {[%emt 0:01:07]} g5 {[%emt 0:05:18]} 33. Bxh5 {[%emt 0:03:22]} Bxa4 {[%emt 0:00:36]} 34. Bf3 {[%emt 0:01:23]} Bb5 {[%emt 0:04:21]} 35. Kc2 {[%emt 0:00:36]} Bd6 {[%emt 0:00:57]} 36. g3 {[%emt 0:01:40]} a4 {[%emt 0:00:46]} 37. Nc1 {[%emt 0:02:09]} a3 {[%emt 0:00:37]} 38. Kb3 {[%emt 0:00:09]} Bc5 {[%emt 0:06:54]} 39. Be2 {[%emt 0:04:32]} Bxe2 {[%emt 0:03:19]} 40. Nxe2 {[%emt 0:00:02]} Kd6 {[%emt 0:00:26]} 41. Nc1 {[%emt 0:13:21]} Bg1 {[%emt 0:00:13]} 42. Nd3 {[%emt 0:00:51]} Bxh2 {[%emt 0:01:21]} 43. g4 {[%emt 0:00:21]} c5 {[%emt 0:00:50]} 44. Kxa3 {[%emt 0:00:04]} c4 {[%emt 0:00:10]} 45. Ne1 {[%emt 0:00:05]} Be5 {[%emt 0:05:26]} 46. Kb4 {[%emt 0:01:26]} c3 {[%emt 0:00:56]} 47. Nd3 {[%emt 0:00:26]} c2 {[%emt 0:00:26]} 48. Kb3 {[%emt 0:00:08]} c1=Q {[%emt 0:00:50]} 49. Nxc1 {[%emt 0:00:12]} Kc5 {[%emt 0:00:09]} 50. Ne2 {[%emt 0:00:18]} Ba1 {[%emt 0:00:27]} 51. Ka2 {[%emt 0:01:41]} Be5 {[%emt 0:00:11]} 52. Kb3 {[%emt 0:00:06]} Ba1 {[%emt 0:00:05]} 1/2-1/2

[Event "FIDE WCCC Open-12 2024"]
[Site "Montesilvano"]
[Date "2024.11.19"]
[Round "5.20"]
[White "Sahbudak, Baris Cinar"]
[Black "Tona, Leonardo"]
[Result "1-0"]
[ECO "B13"]
[WhiteElo "2264"]
[BlackElo "1906"]
[Annotator "RC"]
[PlyCount "121"]
[EventDate "2024.11.18"]
[EventType "swiss"]
[EventCountry "ITA"]
[SourceTitle "playchess.com"]
[Source "ChessBase"]
[SourceQuality "1"]
[TimeControl "5400+30"]

1. e4 {[%emt 0:00:16]} c6 {[%emt 0:00:13]} 2. d4 {[%emt 0:00:25]} d5 {[%emt 0:00:04]} 3. exd5 {[%emt 0:00:22]} cxd5 {[%emt 0:00:08]} 4. Bd3 {[%emt 0:00:48]} Nc6 {[%emt 0:00:19]} 5. c3 {[%emt 0:01:02]} Nf6 {[%emt 0:00:13]} 6. h3 {[%emt 0:02:17]} g6 {[%emt 0:00:09]} 7. Nf3 {[%emt 0:01:19]} Bf5 {[%emt 0:01:43]} 8. O-O {[%emt 0:00:41]} Bg7 {[%emt 0:01:18]} 9. Re1 {[%emt 0:00:43]} Bxd3 {[%emt 0:00:52]} 10. Qxd3 {[%emt 0:00:18]} O-O {[%emt 0:00:41]} 11. Bf4 {[%emt 0:02:31]} Ne4 {[%emt 0:03:20]} 12. Nbd2 {[%emt 0:07:00]} f5 {[%emt 0:07:46]} 13. Nb3 {[%emt 0:09:54]} b6 {[%emt 0:06:53]} 14. Nfd2 {[%emt 0:29:46]} Qd7 {[%emt 0:14:53]} 15. f3 {[%emt 0:09:39]} Nxd2 {[%emt 0:09:52]} 16. Qxd2 {[%emt 0:01:45]} Rae8 {[%emt 0:01:48]} 17. Rad1 {[%emt 0:01:30]} e6 {[%emt 0:02:13]} 18. Re2 {[%emt 0:06:00]} a5 {[%emt 0:08:10]} 19. Nc1 {[%emt 0:05:18]} Nd8 {[%emt 0:02:35]} 20. Nd3 {[%emt 0:02:37]} Nf7 {[%emt 0:00:30]} 21. Rde1 {[%emt 0:00:47]} Re7 {[%emt 0:03:24]} 22. g4 {[%emt 0:09:07]} fxg4 {[%emt 0:08:08]} 23. hxg4 {[%emt 0:00:34]} h6 {[%emt 0:00:24]} 24. Kg2 {[%emt 0:01:35]} g5 {[%emt 0:03:20]} 25. Bg3 {[%emt 0:00:46]} Rfe8 {[%emt 0:06:58]} 26. f4 {[%emt 0:04:21]} Bf6 {[%emt 0:03:17]} 27. Ne5 {[%emt 0:01:01]} Bxe5 {[%emt 0:00:42]} 28. dxe5 {[%emt 0:00:24]} gxf4 {[%emt 0:09:06]} 29. Bxf4 {[%emt 0:00:33]} Kg7 {[%emt 0:00:12]} 30. Bxh6+ {[%emt 0:01:25]} Nxh6 {[%emt 0:00:29]} 31. Qg5+ {[%emt 0:00:00]} Kh8 {[%emt 0:01:26]} 32. Rh1 {[%emt 0:01:00]} Rh7 {[%emt 0:00:15]} 33. Rxh6 {[%emt 0:00:09]} Rxh6 {[%emt 0:00:07]} 34. Qxh6+ {[%emt 0:00:03]} Qh7 {[%emt 0:00:10]} 35. Qf6+ {[%emt 0:00:51]} Qg7 {[%emt 0:00:06]} 36. Kg3 {[%emt 0:00:34]} Qxf6 {[%emt 0:06:46]} 37. exf6 {[%emt 0:00:01]} Kh7 {[%emt 0:00:00]} 38. g5 {[%emt 0:00:23]} Kg6 {[%emt 0:00:00]} 39. Kg4 {[%emt 0:00:21]} Rh8 {[%emt 0:00:00]} 40. Rxe6 {[%emt 0:00:18]} Rh2 {[%emt 0:00:18]} 41. Rxb6 {[%emt 0:00:15]} Rg2+ {[%emt 0:00:07]} 42. Kf4 {[%emt 0:00:53]} Rf2+ {[%emt 0:00:16]} 43. Ke5 {[%emt 0:01:00]} Rf5+ {[%emt 0:00:30]} 44. Ke6 {[%emt 0:00:27]} Kxg5 {[%emt 0:00:43]} 45. Rb5 {[%emt 0:01:19]} Rxf6+ {[%emt 0:00:07]} 46. Kxd5 {[%emt 0:00:07]} Kf4 {[%emt 0:00:24]} 47. Kc4 {[%emt 0:00:37]} Ra6 {[%emt 0:00:25]} 48. Kb3 {[%emt 0:00:26]} a4+ {[%emt 0:00:23]} 49. Ka3 {[%emt 0:00:09]} Ke3 {[%emt 0:00:34]} 50. Rb4 {[%emt 0:00:05]} Kd3 {[%emt 0:00:05]} 51. Rxa4 {[%emt 0:00:26]} Rb6 {[%emt 0:00:14]} 52. Rb4 {[%emt 0:00:07]} Ra6+ {[%emt 0:00:14]} 53. Kb3 {[%emt 0:00:04]} Rc6 {[%emt 0:00:03]} 54. a4 {[%emt 0:00:25]} Rc5 {[%emt 0:00:15]} 55. Rb5 {[%emt 0:00:14]} Rc6 {[%emt 0:00:12]} 56. a5 {[%emt 0:00:04]} Ra6 {[%emt 0:00:07]} 57. Kb4 {[%emt 0:00:24]} Kc2 {[%emt 0:00:14]} 58. Kc4 {[%emt 0:00:29]} Rc6+ {[%emt 0:00:15]} 59. Rc5 {[%emt 0:00:06]} Rh6 {[%emt 0:00:13]} 60. b4 {[%emt 0:00:13]} Rh3 {[%emt 0:00:11]} 61. a6 {[%emt 0:00:07]} 1-0

[Event "FIDE WCCC Open-12 2024"]
[Site "Montesilvano"]
[Date "2024.11.19"]
[Round "5.21"]
[White "Yang, Maxwell"]
[Black "Kuandykuly, Danis"]
[Result "0-1"]
[ECO "E51"]
[WhiteElo "1889"]
[BlackElo "2199"]
[Annotator "ChessBase"]
[PlyCount "120"]
[EventDate "2024.11.18"]
[EventType "swiss"]
[EventCountry "ITA"]
[SourceTitle "playchess.com"]
[Source "ChessBase"]
[SourceQuality "1"]
[TimeControl "5400+30"]

1. d4 {[%emt 0:00:12]} Nf6 {[%emt 0:01:22]} 2. c4 {[%emt 0:00:10]} e6 {[%emt 0:00:23]} 3. Nf3 {[%emt 0:00:23]} d5 {[%emt 0:00:38]} 4. Nc3 {[%emt 0:00:11]} Bb4 {[%emt 0:00:15]} 5. Qa4+ {[%emt 1:32:04]} Nc6 {[%emt 0:00:15]} 6. e3 {[%emt 0:00:00]} dxc4 {[%emt 0:09:57]} 7. Bxc4 {[%emt 0:00:00]} O-O {[%emt 0:00:37]} 8. O-O {[%emt 0:00:00]} a6 {[%emt 0:04:35]} 9. Qc2 {[%emt 0:00:00]} Bd6 {[%emt 0:07:23]} 10. Rd1 {[%emt 0:00:00]} Qe7 {[%emt 0:01:36]} 11. e4 {[%emt 0:00:00]} e5 {[%emt 0:16:51]} 12. Bg5 {[%emt 0:00:00]} Nb4 {[%emt 0:03:47]} 13. Qe2 {[%emt 0:00:00]} exd4 {[%emt 0:10:40]} 14. Nxd4 {[%emt 0:00:00]} h6 {[%emt 0:17:12]} 15. Bh4 {[%emt 0:00:00]} Kh8 {[%emt 0:03:23]} 16. Re1 {[%emt 0:00:00]} Re8 {[%emt 0:07:27]} 17. a3 {[%emt 0:00:00]} Nc6 {[%emt 0:04:34]} 18. Nxc6 {[%emt 0:00:00]} bxc6 {[%emt 0:00:04]} 19. Bg3 {[%emt 0:00:42]} Bg4 {[%emt 0:01:13]} 20. f3 {[%emt 0:01:02]} Bxg3 {[%emt 0:00:10]} 21. hxg3 {[%emt 0:00:02]} Qc5+ {[%emt 0:00:09]} 22. Kf1 {[%emt 0:00:30]} Nh5 {[%emt 0:00:21]} 23. Qe3 {[%emt 0:00:53]} Qxc4+ {[%emt 0:00:05]} 24. Kf2 {[%emt 0:00:07]} Be6 {[%emt 0:03:20]} 25. g4 {[%emt 0:00:11]} Nf6 {[%emt 0:00:28]} 26. g5 {[%emt 0:00:40]} hxg5 {[%emt 0:00:50]} 27. Qxg5 {[%emt 0:00:37]} Qd4+ {[%emt 0:01:22]} 28. Kg3 {[%emt 0:01:08]} Nh7 {[%emt 0:01:20]} 29. Rh1 {[%emt 0:00:40]} Qf6 {[%emt 0:00:24]} 30. Qh5 {[%emt 0:00:34]} Qg6+ {[%emt 0:00:14]} 31. Qxg6 {[%emt 0:00:05]} fxg6 {[%emt 0:00:02]} 32. Ne2 {[%emt 0:00:42]} Kg8 {[%emt 0:01:16]} 33. Rac1 {[%emt 0:00:27]} Bd7 {[%emt 0:01:20]} 34. Nd4 {[%emt 0:01:19]} Rab8 {[%emt 0:01:38]} 35. b4 {[%emt 0:00:16]} Rb6 {[%emt 0:00:14]} 36. Rhd1 {[%emt 0:00:24]} Nf8 {[%emt 0:00:24]} 37. Nb3 {[%emt 0:00:39]} Kf7 {[%emt 0:00:29]} 38. Nc5 {[%emt 0:00:10]} Ke7 {[%emt 0:00:20]} 39. Rc3 {[%emt 0:00:27]} Ra8 {[%emt 0:01:12]} 40. Rcd3 {[%emt 0:00:41]} Be8 {[%emt 0:00:29]} 41. Nb3 {[%emt 0:00:40]} Ne6 {[%emt 0:00:23]} 42. Rc1 {[%emt 0:00:13]} Rd8 {[%emt 0:00:43]} 43. Rxd8 {[%emt 0:00:48]} Kxd8 {[%emt 0:00:08]} 44. Nc5 {[%emt 0:00:13]} Nxc5 {[%emt 0:00:40]} 45. Rxc5 {[%emt 0:00:06]} Rb5 {[%emt 0:00:43]} 46. Kf4 {[%emt 0:00:33]} Rxc5 {[%emt 0:01:27]} 47. bxc5 {[%emt 0:00:07]} Ke7 {[%emt 0:00:01]} 48. Ke5 {[%emt 0:00:09]} Bd7 {[%emt 0:00:05]} 49. g3 {[%emt 0:01:04]} g5 {[%emt 0:00:50]} 50. f4 {[%emt 0:00:43]} gxf4 {[%emt 0:00:03]} 51. gxf4 {[%emt 0:00:16]} g6 {[%emt 0:00:15]} 52. Kd4 {[%emt 0:01:43]} Kf6 {[%emt 0:00:05]} 53. Kc4 {[%emt 0:00:22]} g5 {[%emt 0:00:10]} 54. e5+ {[%emt 0:00:50]} Kf5 {[%emt 0:00:06]} 55. fxg5 {[%emt 0:00:03]} Kxg5 {[%emt 0:00:07]} 56. Kb4 {[%emt 0:00:07]} Kf5 {[%emt 0:00:05]} 57. Ka5 {[%emt 0:00:29]} Bc8 {[%emt 0:00:01]} 58. a4 {[%emt 0:00:49]} Kxe5 {[%emt 0:00:05]} 59. Kb4 {[%emt 0:00:07]} Bg4 {[%emt 0:00:13]} 60. Ka5 {[%emt 0:00:36]} Bd1 {[%emt 0:00:29]} 0-1